fUST/lending_fUST_20260416
["ID","MTS","AMOUNT","RATE_DAILY","PERIOD"]
[420594941,1776291044461,-153.0,0.00013699,2]
[420594942,1776291044471,-153.0,0.00013699,2]
[420594943,1776291044481,-153.0,0.00013699,2]
[420594944,1776291044490,-153.0,0.00013699,2]
[420594945,1776291044500,-1000.0,0.00013699,2]
[420594946,1776291044510,-500.0,0.00013699,2]
[420594947,1776291044519,-500.0,0.00013699,2]
[420594948,1776291044529,-20000.0,0.00013699,2]
[420594949,1776291044538,-20000.0,0.00013699,2]
[420594950,1776291044548,-20000.0,0.00013699,2]
[420594951,1776291044557,-151.0,0.000137,2]
[420594952,1776291044566,-542.97100224,0.000137,2]
[420594953,1776291044576,-198.66,0.00013708,2]
[420594954,1776291044586,-161.60137057,0.00013722,2]
[420594955,1776291044595,-3404.63955351,0.00013723,3]
[420594956,1776291044605,-250.349567,0.00013761,2]
[420594957,1776291044617,-567.45659225,0.00013786,16]
[420594958,1776291044626,-150.0,0.00013795,2]
[420594959,1776291044636,-441.0,0.00013795,2]
[420594960,1776291044645,-561.0,0.00013795,2]
[420594961,1776291044655,-184.0,0.00013795,2]
[420594962,1776291044664,-6599.80863007,0.00013838,2]
[420594963,1776291044673,-567.45659225,0.00013848,18]
[420594964,1776291044683,-202.95,0.0001387,2]
[420594965,1776291044692,-400.0,0.0001389,3]
[420594966,1776291044702,-160.84019867,0.00013899,2]
[420594967,1776291044711,-200.0,0.00013899,2]
[420594968,1776291044720,-38000.0,0.000139,3]
[420594969,1776291044730,-151.0,0.000139,2]
[420594970,1776291044739,-38000.0,0.000139,3]
[420594971,1776291044748,-160.0,0.000139,3]
[420594972,1776291044758,-34060.24385604,0.000139,3]
[420594973,1776291044767,-151.0,0.000139,2]
[420594974,1776291044777,-567.45659225,0.00013911,19]
[420594975,1776291044786,-1266.95,0.00013972,2]
[420594976,1776291044795,-1439.0,0.00013973,2]
[420594977,1776291044805,-567.45659225,0.00013973,21]
[420594978,1776291044814,-160.0,0.00014,30]
[420594979,1776291044824,-8534.99999901,0.00014,2]
[420594980,1776291044833,-567.45659225,0.00014036,22]
[420594981,1776291044843,-5888.0,0.00014055,2]
[420594982,1776291044852,-567.45659225,0.00014098,23]
[420594983,1776291044862,-200.0,0.000141,2]
[420594984,1776291044871,-151.0,0.000141,2]
[420594985,1776291044880,-3570.783461,0.00014151,2]
[420594986,1776291044890,-567.45659225,0.00014161,25]
[420594987,1776291044900,-151.0,0.000142,2]
[420594988,1776291044909,-151.0,0.000142,2]
[420594989,1776291044919,-211.67,0.00014206,2]
[420594990,1776291044929,-1000.0,0.00014221,2]
[420594991,1776291044938,-1000.0,0.00014221,2]
[420594992,1776291044947,-1000.0,0.00014221,2]
[420594993,1776291044956,-1000.0,0.00014221,2]
[420594994,1776291044965,-567.45659225,0.00014223,26]
[420594995,1776291044975,-1266.95,0.00014246,2]
[420594996,1776291044984,-1439.0,0.00014247,2]
[420594997,1776291044994,-500.0,0.00014247,2]
[420594998,1776291045003,-5888.0,0.00014249,2]
[420594999,1776291045013,-567.45659225,0.00014286,28]
[420595000,1776291045022,-160.0,0.000143,3]
[420595001,1776291045031,-567.45659225,0.00014348,29]
[420595002,1776291045040,-151.0,0.000144,2]
[420595003,1776291045050,-151.0,0.000144,2]
[420595004,1776291045059,-151.0,0.000144,2]
[420595005,1776291045068,-567.45659225,0.00014411,30]
[420595006,1776291045078,-567.45659225,0.00014473,30]
[420595007,1776291045087,-160.0,0.000145,3]
[420595008,1776291045096,-1266.95,0.0001452,2]
[420595009,1776291045106,-1439.0,0.00014521,2]
[420595010,1776291045115,-1134.8131845,0.00014536,30]
[420595011,1776291045124,-155.0,0.00014557,2]
[420595012,1776291045134,-2531.281965,0.00014576,2]
[420595013,1776291045143,-796.7494855,0.00014612,2]
[420595014,1776291045153,-192.666471,0.00014613,7]
[420595015,1776291045163,-1050.512005,0.00014658,2]
[420595016,1776291045172,-674.325493,0.00014664,7]
[420595017,1776291045181,-223.56,0.00014666,2]
[420595018,1776291045190,-13299.804734,0.00014668,2]
[420595019,1776291045200,-200.0,0.00014699,2]
[420595020,1776291045210,-11167.98784203,0.000147,2]
[420595021,1776291045219,-102871.93062998,0.000147,2]
[420595022,1776291045228,-151.0,0.000147,2]
[420595023,1776291045237,-659847.80168627,0.000147,2]
[420595075,1776291046751,-871.0,0.00011408,2]
[420595077,1776291046876,-1000.0,0.00011408,2]
[420595079,1776291083308,877.0,0.00026842,120]
[420595081,1776291171961,519.0,0.00026842,120]
[420595082,1776291209867,1222.38,0.000268,120]
[420595083,1776291233617,2000.0,0.000268,120]
[420595084,1776291281420,169.0,0.00026842,120]
[420595085,1776291745705,179.0,0.0002735,120]
[420595274,1776292129078,5000.0,0.00027397,120]
[420595276,1776292155691,415.0,0.00026744,120]
[420595315,1776292232129,-5000.0,0.00010078,2]
[420595316,1776292232138,-1151.66802519,0.0001018,2]
[420595318,1776292232148,-564.0,0.00010279,2]
[420595320,1776292232157,-340.45463013,0.00010385,2]
[420595321,1776292232166,-160.0,0.00010478,2]
[420595322,1776292232175,-160.0,0.00010478,2]
[420595323,1776292232184,-183.96515,0.00010568,2]
[420595324,1776292232193,-160.0,0.00010939,2]
[420595325,1776292232202,-300.0,0.00011028,2]
[420595326,1776292232211,-10000.0,0.00011029,2]
[420595327,1776292232220,-2100.0,0.00011156,2]
[420595328,1776292232231,-300.0,0.00011233,2]
[420595329,1776292232240,-300.0,0.00011233,2]
[420595330,1776292232250,-300.0,0.00011233,2]
[420595331,1776292232259,-300.0,0.00011233,2]
[420595332,1776292232268,-300.0,0.00011233,2]
[420595333,1776292232278,-300.0,0.00011233,2]
[420595334,1776292232287,-300.0,0.00011233,2]
[420595335,1776292232296,-300.0,0.00011233,2]
[420595336,1776292232305,-300.0,0.00011233,2]
[420595337,1776292232314,-300.0,0.00011233,2]
[420595339,1776292232324,-300.0,0.00011233,2]
[420595340,1776292232334,-300.0,0.00011233,2]
[420595341,1776292232343,-300.0,0.00011233,2]
[420595342,1776292232352,-300.0,0.00011233,2]
[420595343,1776292232362,-300.0,0.00011233,2]
[420595344,1776292232371,-644.0,0.00011365,2]
[420595345,1776292232381,-1407.0,0.00011365,2]
[420595346,1776292232390,-441.0,0.00011365,2]
[420595347,1776292232400,-554.0,0.00011365,2]
[420595348,1776292232409,-184.0,0.00011365,2]
[420595349,1776292232419,-537.6845,0.0001139,2]
[420595350,1776292232428,-557.5788265,0.00011445,2]
[420595351,1776292232437,-600.0,0.00011457,2]
[420595352,1776292232447,-578.20924308,0.000115,2]
[420595353,1776292232456,-194.99351377,0.00011555,2]
[420595354,1776292232469,-238.13,0.00011955,2]
[420595355,1776292232478,-420.0,0.00012118,2]
[420595356,1776292232487,-401.73646356,0.00012385,2]
[420595357,1776292232496,-720.0,0.00012602,2]
[420595358,1776292232505,-542.0,0.000127,2]
[420595359,1776292232514,-533.13189445,0.0001289,2]
[420595364,1776292238559,-68723.15583069,0.0001289,2]
[420595365,1776292238568,-3005.46102086,0.000129,2]
[420595381,1776292243986,184.0,0.00026744,120]
[420595394,1776292246479,-3487.04804556,0.000129,2]
[420595395,1776292246489,-6492.50906639,0.000129,2]
[420595396,1776292246498,-6657.8726952,0.0001299,2]
[420595397,1776292267258,1131.0,0.00027397,120]
[420595398,1776292268863,12605.7411306,0.00027397,120]
[420595403,1776292292502,1182.0,0.00027,120]
[420595405,1776292378637,1813.0,0.00027397,120]
[420595406,1776292391157,420.0,0.00026744,120]
[420595416,1776292441092,6622.5,0.00027397,120]
[420595417,1776292477725,833.0,0.00026744,120]
[420595418,1776292488216,274.53099811,0.00027397,120]
[420595419,1776292503671,331.5,0.00027397,120]
[420595421,1776292567811,493.0,0.00026744,120]
[420595423,1776292669513,160.0,0.00026772,120]
[420595424,1776293058638,499.99,0.00027397,120]
[420595425,1776293329735,1734.19,0.0002737,120]
[420595464,1776293432771,-675.42364712,9.415e-05,2]
[420595465,1776293432783,-618.10058986,9.415e-05,2]
[420595466,1776293432809,-973.24357827,9.415e-05,2]
[420595467,1776293432821,-410.71337545,9.415e-05,2]
[420595468,1776293432832,-545.83712939,9.415e-05,2]
[420595469,1776293432843,-1776.68167991,9.415e-05,2]
[420595470,1776293432853,-172.66913795,9.51e-05,2]
[420595480,1776293439373,-380.33086205,9.51e-05,2]
[420595481,1776293439383,-343.4890017,9.699e-05,2]
[420595482,1776293439392,-1152.95541124,9.879e-05,2]
[420595483,1776293439427,-575.8249803,9.879e-05,2]
[420595502,1776293440917,-493.22357049,9.879e-05,2]
[420595503,1776293440927,-4465.39892438,9.979e-05,2]
[420595504,1776293440936,-1102.98347112,0.0001,2]
[420595505,1776293440973,-132.08731167,0.0001,2]
[420595506,1776293440982,-1060.58491904,0.00010079,2]
[420595519,1776293443622,-3602.51878571,0.00010079,2]
[420595520,1776293443631,-160.0,0.00010095,2]
[420595521,1776293443640,-6673.28227892,0.00010097,2]
[420595522,1776293443649,-300.0,0.00010097,2]
[420595523,1776293443658,-300.0,0.00010097,2]
[420595524,1776293443667,-300.0,0.00010097,2]
[420595525,1776293443678,-300.0,0.00010097,2]
[420595526,1776293443687,-300.0,0.00010097,2]
[420595527,1776293443697,-300.0,0.00010097,2]
[420595528,1776293443706,-300.0,0.00010097,2]
[420595529,1776293443715,-300.0,0.00010097,2]
[420595530,1776293443725,-300.0,0.00010097,2]
[420595531,1776293443735,-300.0,0.00010097,2]
[420595532,1776293443744,-300.0,0.00010097,2]
[420595533,1776293443753,-300.0,0.00010097,2]
[420595534,1776293443762,-300.0,0.00010097,2]
[420595535,1776293443772,-300.0,0.00010097,2]
[420595536,1776293443781,-300.0,0.00010097,2]
[420595537,1776293443791,-500.0,0.00010272,2]
[420595538,1776293443800,-388.59707488,0.00010272,2]
[420595539,1776293443809,-500.0,0.00010272,2]
[420595540,1776293443818,-500.0,0.00010272,2]
[420595541,1776293443828,-500.0,0.00010272,2]
[420595542,1776293443837,-500.0,0.00010272,2]
[420595543,1776293443847,-500.0,0.00010272,2]
[420595544,1776293443857,-500.0,0.00010272,2]
[420595545,1776293443867,-500.0,0.00010272,2]
[420595546,1776293443876,-500.0,0.00010272,2]
[420595547,1776293443885,-466.04085349,0.00010272,2]
[420595548,1776293443898,-33.95914651,0.00010272,2]
[420595549,1776293443907,-500.0,0.00010272,2]
[420595550,1776293443917,-250.0,0.00010272,2]
[420595551,1776293443926,-500.0,0.00010272,2]
[420595552,1776293443935,-500.0,0.00010272,2]
[420595553,1776293443945,-500.0,0.00010272,2]
[420595554,1776293443955,-369.87942859,0.00010272,2]
[420595555,1776293443966,-214.86641449,0.00010272,2]
[420595556,1776293443976,-500.0,0.00010272,2]
[420595557,1776293443985,-500.0,0.00010272,2]
[420595558,1776293443995,-500.0,0.00010272,2]
[420595559,1776293444006,-500.0,0.00010272,2]
[420595560,1776293444016,-500.0,0.00010272,2]
[420595561,1776293444025,-500.0,0.00010272,2]
[420595562,1776293444034,-669.78094199,0.00010279,2]
[420595596,1776293446904,-4710.98199635,0.00010279,2]
[420595597,1776293446914,-600.0,0.00010298,2]
[420595598,1776293446923,-5739.59255518,0.00010379,2]
[420595599,1776293446933,-500.0,0.0001065,2]
[420595600,1776293446943,-500.0,0.0001065,2]
[420595601,1776293446952,-500.0,0.00010958,2]
[420595602,1776293446961,-339.84198231,0.00010958,2]
[420595603,1776293446970,-475.03099853,0.00010958,2]
[420595604,1776293446979,-500.0,0.00010958,2]
[420595605,1776293446988,-500.0,0.00010958,2]
[420595606,1776293446998,-500.0,0.00010958,2]
[420595607,1776293447008,-500.0,0.00010958,2]
[420595608,1776293447018,-500.0,0.00010958,2]
[420595609,1776293447027,-500.0,0.00010958,2]
[420595610,1776293447036,-500.0,0.00010958,2]
[420595611,1776293447046,-581.77413011,0.00010958,2]
[420595612,1776293447055,-500.0,0.00010958,2]
[420595613,1776293447065,-500.0,0.00010958,2]
[420595614,1776293447074,-500.0,0.00010958,2]
[420595615,1776293447083,-500.0,0.00010958,2]
[420595616,1776293447092,-500.0,0.00010958,2]
[420595617,1776293447102,-500.0,0.00010958,2]
[420595618,1776293447111,-500.0,0.00010958,2]
[420595619,1776293447121,-500.0,0.00010958,2]
[420595620,1776293447131,-500.0,0.00010958,2]
[420595621,1776293447140,-500.0,0.00010958,2]
[420595622,1776293447149,-15380.3736,0.00010959,2]
[420595623,1776293447159,-500.0,0.00010959,2]
[420595624,1776293447168,-500.0,0.00010959,2]
[420595625,1776293447178,-500.0,0.00010959,2]
[420595626,1776293447187,-500.0,0.00010959,2]
[420595627,1776293447196,-500.0,0.00010959,2]
[420595628,1776293447206,-179.04499888,0.00010959,2]
[420595629,1776293447215,-500.0,0.00010959,2]
[420595630,1776293447224,-500.0,0.00010959,2]
[420595631,1776293447234,-500.0,0.00010959,2]
[420595632,1776293447243,-500.0,0.00010959,2]
[420595633,1776293447252,-500.0,0.00010959,2]
[420595634,1776293447262,-1000.0,0.00011198,2]
[420595635,1776293447271,-1000.0,0.00011198,2]
[420595636,1776293447280,-6098.42217202,0.00011255,2]
[420595637,1776293447290,-720.0,0.00011328,2]
[420595638,1776293447299,-405.31702201,0.00011698,2]
[420595639,1776293447310,-1500.0,0.00011746,2]
[420595640,1776293447320,-1500.0,0.00011746,2]
[420595641,1776293447329,-2207.0,0.00011764,2]
[420595642,1776293447338,-441.0,0.00011764,2]
[420595643,1776293447347,-738.0,0.00011764,2]
[420595644,1776293447357,-184.0,0.00011764,2]
[420595645,1776293447366,-152.315,0.00011764,2]
[420595646,1776293447375,-210.642,0.00011764,2]
[420595647,1776293447384,-232.529,0.00011764,2]
[420595648,1776293447393,-2000.0,0.00012294,2]
[420595649,1776293447402,-2000.0,0.00012294,2]
[420595650,1776293447412,-6457.25178886,0.00012297,2]
[420595651,1776293447421,-864.0,0.0001246,2]
[420595652,1776293447431,-643.666679,0.00012834,2]
[420595653,1776293447440,-2210.58936389,0.00012842,2]
[420595654,1776293447450,-2500.0,0.00012842,2]
[420595655,1776293447460,-342.1273048,0.0001299,2]
[420595656,1776293447469,-500.0,0.0001299,2]
[420595657,1776293447479,-6708.79388673,0.0001334,2]
[420595658,1776293447489,-3000.0,0.0001339,2]
[420595659,1776293447499,-355.34248703,0.00013552,2]
[420595660,1776293447508,-315.122,0.00013698,2]
[420595661,1776293447517,-500.0,0.00013698,2]
[420595662,1776293447526,-500.0,0.00013698,2]
[420595663,1776293447536,-500.0,0.00013698,2]
[420595664,1776293447545,-500.0,0.00013698,2]
[420595665,1776293447554,-500.0,0.00013698,2]
[420595666,1776293447564,-500.0,0.00013698,2]
[420595667,1776293447573,-500.0,0.00013698,2]
[420595668,1776293447583,-500.0,0.00013698,2]
[420595669,1776293447593,-500.0,0.00013698,2]
[420595670,1776293447602,-500.0,0.00013698,2]
[420595671,1776293447613,-467.14504231,0.00013699,2]
[420595672,1776293447622,-500.0,0.00013699,2]
[420595673,1776293447631,-180.00180002,0.00013699,2]
[420595674,1776293447640,-156.0,0.00013699,2]
[420595675,1776293447650,-360.637137,0.00013699,2]
[420595676,1776293447659,-24336.4076291,0.00013699,2]
[420595677,1776293447669,-2980.808628,0.00013699,2]
[420595678,1776293447678,-1000.0,0.00013699,2]
[420595679,1776293447687,-1000.0,0.00013699,2]
[420595680,1776293447697,-151.0,0.00013699,2]
[420595681,1776293447707,-151.0,0.00013699,2]
[420595682,1776293447718,-249.315655,0.00013699,2]
[420595683,1776293447727,-643.2924,0.00013699,2]
[420595684,1776293447736,-643.2924,0.00013699,2]
[420595685,1776293447746,-643.2924,0.00013699,2]
[420595686,1776293447755,-643.2924,0.00013699,2]
[420595687,1776293447764,-643.2924,0.00013699,2]
[420595688,1776293447773,-643.2924,0.00013699,2]
[420595689,1776293447783,-643.2924,0.00013699,2]
[420595690,1776293447792,-643.2924,0.00013699,2]
[420595691,1776293447801,-151.0,0.00013699,2]
[420595692,1776293447985,-382.010122,0.00013699,2]
[420595693,1776293447995,-382.010122,0.00013699,2]
[420595694,1776293448005,-382.010122,0.00013699,2]
[420595695,1776293448015,-382.010122,0.00013699,2]
[420595696,1776293448024,-382.010122,0.00013699,2]
[420595697,1776293448034,-382.010122,0.00013699,2]
[420595698,1776293448043,-382.010122,0.00013699,2]
[420595699,1776293448053,-382.010122,0.00013699,2]
[420595700,1776293448062,-277.031396,0.00013699,2]
[420595701,1776293448072,-277.031396,0.00013699,2]
[420595702,1776293448081,-277.031396,0.00013699,2]
[420595703,1776293448091,-277.031396,0.00013699,2]
[420595704,1776293448105,-151.0,0.00013699,2]
[420595705,1776293448115,-500.0,0.00013699,2]
[420595706,1776293448125,-500.0,0.00013699,2]
[420595707,1776293448135,-254.74510286,0.00013699,2]
[420595708,1776293448145,-1439.0,0.000137,2]
[420595709,1776293448154,-1000.0,0.00013707,2]
[420595710,1776293448164,-3500.0,0.00013938,2]
[420595711,1776293448174,-500.0,0.00013971,2]
[420595712,1776293448183,-500.0,0.00013971,2]
[420595713,1776293448192,-500.0,0.00013971,2]
[420595714,1776293448202,-38000.0,0.00013972,3]
[420595715,1776293448211,-5189.11045218,0.00013972,3]
[420595716,1776293448221,-171.816344,0.00013972,2]
[420595717,1776293448231,-180.386398,0.00013972,2]
[420595718,1776293448240,-1439.0,0.00013974,2]
[420595719,1776293448250,-407.684292,0.00014057,2]
[420595720,1776293448259,-500.0,0.00014247,2]
[420595721,1776293448269,-1439.0,0.00014248,2]
[420595722,1776293448279,-2535.6885823,0.00014335,2]
[420595723,1776293448289,-500.0,0.00014381,2]
[420595724,1776293448299,-7088.0048003,0.00014382,2]
[420595725,1776293448309,-277.031396,0.00014382,2]
[420595726,1776293448319,-277.031396,0.00014382,2]
[420595727,1776293448328,-277.031396,0.00014382,2]
[420595728,1776293448338,-277.031396,0.00014382,2]
[420595729,1776293448348,-914.13499928,0.00014406,2]
[420595730,1776293448358,-500.0,0.00014451,2]
[420595731,1776293448368,-4000.0,0.00014486,2]
[420595732,1776293448378,-151.0,0.00014486,2]
[420595733,1776293448387,-151.0,0.00014486,2]
[420595734,1776293448397,-151.0,0.00014486,2]
[420595735,1776293448406,-151.0,0.00014486,2]
[420595736,1776293448415,-1439.0,0.00014522,2]
[420595737,1776293448425,-407.684292,0.00014649,2]
[420595738,1776293448434,-360.637137,0.00014658,2]
[420595739,1776293448444,-252.0,0.00014658,2]
[420595740,1776293448453,-643.2924,0.00014664,2]
[420595741,1776293448462,-643.2924,0.00014664,2]
[420595742,1776293448472,-643.2924,0.00014664,2]
[420595743,1776293448481,-643.2924,0.00014664,2]
[420595744,1776293448491,-382.010122,0.00014664,2]
[420595745,1776293448500,-382.010122,0.00014664,2]
[420595746,1776293448509,-382.010122,0.00014664,2]
[420595747,1776293448519,-382.010122,0.00014664,2]
[420595748,1776293448528,-500.0,0.00014673,2]
[420595749,1776293448538,-500.0,0.00014673,2]
[420595750,1776293448547,-500.0,0.00014673,2]
[420595751,1776293448556,-500.0,0.00014673,2]
[420595752,1776293448566,-500.0,0.00014673,2]
[420595753,1776293448576,-500.0,0.00014673,2]
[420595754,1776293448585,-500.0,0.00014673,2]
[420595755,1776293448595,-500.0,0.00014673,2]
[420595756,1776293448604,-500.0,0.00014673,2]
[420595757,1776293448613,-500.0,0.00014673,2]
[420595758,1776293448623,-500.0,0.00014673,2]
[420595759,1776293448633,-500.0,0.00014673,2]
[420595760,1776293448642,-500.0,0.00014673,2]
[420595761,1776293448652,-500.0,0.00014673,2]
[420595762,1776293448661,-500.0,0.00014673,2]
[420595763,1776293448670,-466.86600635,0.00014673,2]
[420595764,1776293448680,-500.0,0.00014673,2]
[420595765,1776293448689,-500.0,0.00014673,2]
[420595766,1776293448698,-311.43956454,0.00014673,2]
[420595767,1776293448708,-161.39570094,0.00014673,2]
[420595768,1776293448717,-500.0,0.00014673,2]
[420595769,1776293448727,-500.0,0.00014673,2]
[420595770,1776293448736,-500.0,0.00014673,2]
[420595771,1776293448745,-500.0,0.00014673,2]
[420595772,1776293448755,-246.13015418,0.00014673,2]
[420595773,1776293448765,-500.0,0.00014673,2]
[420595774,1776293448774,-277415.63354076,0.000147,2]
[420595775,1776293448827,-51831.55585526,0.000147,2]
[420595778,1776293576351,394.0,0.00026772,120]
[420595779,1776293578994,200.0,0.00027397,120]
[420595780,1776293600078,158.64,0.00027397,120]
[420595781,1776293664354,175.0,0.00026772,120]
[420595782,1776293715833,1009.32308083,0.00027397,120]
[420595784,1776293799777,399.0,0.00026746,120]
[420595785,1776293889051,791.0,0.00026746,120]
[420595787,1776293976406,468.0,0.00026746,120]
[420595788,1776294065257,152.0,0.00026792,120]
[420595789,1776294081033,-300.0,9.866e-05,2]
[420595790,1776294081085,-864.50984693,9.867e-05,2]
[420595791,1776294110122,-300.0,9.867e-05,2]
[420595795,1776294351891,2222.0,0.00027397,120]
[420595796,1776294438717,1000.0,0.00027397,120]
[420595797,1776294440250,1000.0,0.00027397,120]
[420595798,1776294441286,1000.0,0.00027397,120]
[420595799,1776294442066,1000.0,0.00027397,120]
[420595800,1776294442732,1000.0,0.00027397,120]
[420595801,1776294443550,1000.0,0.00027397,120]
[420595802,1776294444545,1000.0,0.00027397,120]
[420595803,1776294554979,537.9727,0.00027387,120]
[420595804,1776294555011,537.9727,0.00027387,120]
[420595805,1776294555045,537.9727,0.00027387,120]
[420595806,1776294562995,537.9727,0.00027387,120]
[420595807,1776294563048,537.9727,0.00027387,120]
[420595808,1776294563112,537.9727,0.00027387,120]
[420595809,1776294582903,778.90480518,0.00027397,120]
[420595810,1776294611491,537.9727,0.00027387,120]
[420595811,1776294611551,537.9727,0.00027387,120]
[420595812,1776294611604,537.9727,0.00027387,120]
[420595813,1776294619649,537.9727,0.00027387,120]
[420595814,1776294619705,537.9727,0.00027387,120]
[420595815,1776294627660,537.9727,0.00027387,120]
[420595816,1776294627950,537.9727,0.00027387,120]
[420595817,1776294627991,537.9727,0.00027387,120]
[420595825,1776294632640,-527.24647333,9.573e-05,2]
[420595826,1776294632652,-1009.63662955,9.573e-05,2]
[420595827,1776294632694,-296.92009493,9.573e-05,2]
[420596004,1776294635752,537.9727,0.00027387,120]
[420596005,1776294635795,537.9727,0.00027387,120]
[420596006,1776294635843,537.9727,0.00027387,120]
[420596067,1776294643873,537.9727,0.00027387,120]
[420596091,1776294647756,-3166.19680219,9.573e-05,2]
[420596092,1776294647766,-555.0,9.67e-05,2]
[420596093,1776294647775,-337.58491053,9.802e-05,2]
[420596094,1776294647784,-1183.88051336,0.0001,2]
[420596095,1776294647793,-500.0,0.00010096,2]
[420596096,1776294647803,-160.0,0.00010261,2]
[420596097,1776294647812,-600.0,0.00010476,2]
[420596098,1776294647821,-5606.8955732,0.00011126,2]
[420596099,1776294647831,-720.0,0.00011524,2]
[420596100,1776294647840,-398.35019442,0.00011802,2]
[420596101,1776294647849,-150.572,0.00011931,2]
[420596102,1776294647860,-151.128,0.00011935,2]
[420596103,1776294647869,-644.0,0.00011935,2]
[420596104,1776294647878,-2205.0,0.00011935,2]
[420596105,1776294647888,-1407.0,0.00012032,2]
[420596106,1776294647897,-441.0,0.00012032,2]
[420596107,1776294647906,-738.0,0.00012032,2]
[420596108,1776294647915,-184.0,0.00012032,2]
[420596109,1776294647925,-684.44,0.00012329,2]
[420596110,1776294647934,-864.0,0.00012676,2]
[420596111,1776294647943,-312.32818125,0.00012727,2]
[420596112,1776294647953,-500.0,0.00012727,2]
[420596113,1776294647962,-530.27427447,0.00012727,2]
[420596114,1776294647971,-543.39197242,0.00012727,2]
[420596115,1776294647980,-500.0,0.00012727,2]
[420596116,1776294647989,-500.0,0.00012727,2]
[420596117,1776294647999,-543.39197242,0.00012727,2]
[420596118,1776294648008,-543.39197242,0.00012727,2]
[420596119,1776294648018,-500.0,0.00012727,2]
[420596120,1776294648027,-543.39197242,0.00012727,2]
[420596121,1776294648036,-500.0,0.00012727,2]
[420596122,1776294648046,-543.39197242,0.00012727,2]
[420596123,1776294648055,-500.0,0.00012727,2]
[420596124,1776294648064,-543.39197242,0.00012727,2]
[420596125,1776294648073,-500.0,0.00012727,2]
[420596126,1776294648082,-543.39197242,0.00012727,2]
[420596127,1776294648091,-500.0,0.00012727,2]
[420596128,1776294648101,-500.0,0.00012727,2]
[420596129,1776294648110,-500.0,0.00012727,2]
[420596130,1776294648120,-543.39197242,0.00012727,2]
[420596131,1776294648130,-500.0,0.00012727,2]
[420596132,1776294648141,-543.39197242,0.00012727,2]
[420596133,1776294648150,-500.0,0.00012727,2]
[420596134,1776294648160,-543.39197242,0.00012727,2]
[420596135,1776294648346,-501.35266097,0.00012727,2]
[420596136,1776294648356,-543.39197242,0.00012727,2]
[420596137,1776294648365,-500.0,0.00012727,2]
[420596138,1776294648375,-500.0,0.00012727,2]
[420596139,1776294648385,-543.39197242,0.00012727,2]
[420596140,1776294648394,-543.39197242,0.00012727,2]
[420596141,1776294648403,-500.0,0.00012727,2]
[420596142,1776294648413,-543.39197242,0.00012727,2]
[420596143,1776294648422,-543.39197242,0.00012727,2]
[420596144,1776294648432,-543.39197242,0.00012727,2]
[420596145,1776294648444,-500.0,0.00012727,2]
[420596146,1776294648453,-543.39197242,0.00012727,2]
[420596147,1776294648462,-543.39197242,0.00012727,2]
[420596148,1776294648472,-543.39197242,0.00012727,2]
[420596149,1776294648481,-500.0,0.00012727,2]
[420596150,1776294648491,-500.0,0.00012727,2]
[420596151,1776294648500,-500.0,0.00012727,2]
[420596152,1776294648510,-500.0,0.00012727,2]
[420596153,1776294648519,-500.0,0.00012727,2]
[420596154,1776294648529,-500.0,0.00012727,2]